fUSD/lending_fUSD_20250812
["ID","MTS","AMOUNT","RATE_DAILY","PERIOD"]
[378811036,1755033032045,-200.0,0.00034,30]
[378811037,1755033032055,-200.0,0.00034,30]
[378811038,1755033032064,-151.0,0.00034332,17]
[378811039,1755033032074,-509.0,0.00034386,17]
[378811040,1755033032084,-509.0,0.00035098,18]
[378811041,1755033032094,-850.0,0.00035098,2]
[378811042,1755033032103,-509.0,0.00035809,19]
[378811043,1755033032113,-211.77135896,0.00035888,2]
[378811044,1755033032122,-1593.09,0.0003609,2]
[378811046,1755033032132,-540.7,0.0003616,2]
[378811048,1755033032141,-790.72,0.00036247,30]
[378811050,1755033032151,-150.0,0.0003625,2]
[378811052,1755033032161,-562.17,0.00036264,2]
[378811053,1755033032171,-1275.87,0.00036322,2]
[378811054,1755033032181,-408.11,0.00036325,7]
[378811055,1755033032190,-150.0,0.00036342,2]
[378811056,1755033032200,-509.0,0.00036521,20]
[378811057,1755033032210,-208.67,0.00036728,120]
[378811058,1755033032220,-509.0,0.00037232,22]
[378811059,1755033032229,-280.0,0.000374,30]
[378811060,1755033032239,-280.0,0.000374,30]
[378811061,1755033032248,-1222.48,0.00037485,2]
[378811062,1755033032257,-1222.48,0.00037504,2]
[378811063,1755033032268,-1222.48,0.00037524,2]
[378811064,1755033032278,-1222.48,0.00037544,2]
[378811065,1755033032288,-1222.48,0.00037564,2]
[378811066,1755033032301,-1222.48,0.00037583,2]
[378811067,1755033032311,-1222.48,0.00037603,2]
[378811068,1755033032321,-166.36,0.0003762,2]
[378811069,1755033032330,-1222.48,0.00037623,2]
[378811070,1755033032341,-1222.48,0.00037643,2]
[378811071,1755033032351,-1222.48,0.00037662,2]
[378811072,1755033032360,-1222.48,0.00037682,2]
[378811073,1755033032373,-1222.48,0.00037702,2]
[378811074,1755033032383,-1222.48,0.00037721,2]
[378811075,1755033032393,-1222.48,0.00037741,2]
[378811076,1755033032402,-1222.48,0.00037761,2]
[378811077,1755033032411,-168.0,0.00037769,2]
[378811078,1755033032422,-1222.48,0.00037781,2]
[378811079,1755033032432,-1222.48,0.000378,2]
[378811080,1755033032441,-1222.48,0.0003782,2]
[378811081,1755033032451,-1222.48,0.0003784,2]
[378811082,1755033032460,-168.0,0.00037841,2]
[378811083,1755033032470,-1222.48,0.0003786,2]
[378811084,1755033032480,-168.0,0.00037887,2]
[378811085,1755033032490,-14419.09991423,0.00037888,2]
[378811086,1755033032503,-9027.40008577,0.00037888,2]
[378811087,1755033032513,-509.0,0.00037944,23]
[378811088,1755033032523,-151.0,0.00038,120]
[378811089,1755033032533,-151.0,0.00038,120]
[378811090,1755033032543,-1000.0,0.00038321,2]
[378811091,1755033032553,-170.0,0.0003843,7]
[378811092,1755033032564,-250.0,0.00038438,2]
[378811093,1755033032576,-500.0,0.00038495,2]
[378811094,1755033032587,-2106.2651,0.00038547,2]
[378811095,1755033032597,-168.0,0.00038613,2]
[378811096,1755033032608,-16217.36686576,0.00038646,2]
[378811097,1755033032621,-1359.06667435,0.00038646,2]
[378811098,1755033032646,-842.76868407,0.00038646,2]
[378811099,1755033032668,-4577.80053643,0.00038646,2]
[378811100,1755033032680,-12002.0,0.00038646,2]
[378811101,1755033032692,-8121.26501236,0.00038646,2]
[378811102,1755033032704,-6914.52211789,0.00038646,2]
[378811103,1755033032713,-509.0,0.00038655,24]
[378811104,1755033032723,-666.0,0.00038656,3]
[378811105,1755033032733,-154.52,0.00038843,2]
[378811106,1755033032743,-168.0,0.00039021,2]
[378811107,1755033032752,-228.0,0.00039067,2]
[378811108,1755033032762,-509.0,0.00039367,25]
[378811109,1755033032772,-2771.0,0.000394,5]
[378811110,1755033032782,-151.0,0.000396,120]
[378811111,1755033032791,-151.0,0.0004,120]
[378811112,1755033032801,-509.0,0.00040078,26]
[378811113,1755033032810,-154.52,0.00040786,2]
[378811114,1755033032820,-509.0,0.0004079,28]
[378811115,1755033032830,-3532.13,0.00040959,2]
[378811116,1755033032839,-359.96,0.000411,2]
[378811117,1755033032848,-637.4880688,0.00041167,10]
[378811118,1755033032858,-151.0,0.000412,120]
[378811119,1755033032868,-595.07,0.00041465,30]
[378811120,1755033032878,-606.85,0.00041465,30]
[378811121,1755033032888,-598.31,0.00041465,30]
[378811122,1755033032898,-606.2,0.00041465,30]
[378811123,1755033032908,-509.0,0.00041501,29]
[378811124,1755033032918,-161.15266288,0.00041766,2]
[378811125,1755033032928,-1000.0,0.00041784,2]
[378811126,1755033032938,-161.15266288,0.00041799,2]
[378811127,1755033032947,-161.15266288,0.00041865,2]
[378811128,1755033032956,-161.15266288,0.00041883,2]
[378811129,1755033032966,-151.0,0.000419,120]
[378811130,1755033032975,-429.76761068,0.00042091,120]
[378811131,1755033032985,-1224.04944865,0.00042091,15]
[378811132,1755033032995,-509.0,0.00042213,30]
[378811133,1755033033004,-2500.0,0.00042236,2]
[378811134,1755033033013,-34517.2901,0.00042236,2]
[378811135,1755033033022,-585.40621148,0.00042264,57]
[378811136,1755033033032,-700.0,0.00042312,15]
[378811137,1755033033048,-700.0,0.00042312,15]
[378811138,1755033033068,-700.0,0.00042312,15]
[378811139,1755033033077,-700.0,0.00042312,15]
[378811140,1755033033087,-700.0,0.00042312,15]
[378811141,1755033033104,-700.0,0.00042312,15]
[378811142,1755033033118,-700.0,0.00042312,15]
[378811143,1755033033129,-700.0,0.00042312,15]
[378811144,1755033033138,-320.29041264,0.00042335,60]
[378811145,1755033033148,-11602.8015,0.00042336,2]
[378811146,1755033033157,-247.52,0.00042365,120]
[378811147,1755033033168,-1151.233,0.00042437,120]
[378811148,1755033033177,-728.075,0.00042437,120]
[378811149,1755033033186,-429.76761058,0.00042466,120]
[378811150,1755033033195,-200.0,0.00042469,2]
[378811151,1755033033205,-790.72,0.00042471,120]
[378811152,1755033033215,-244.46056867,0.00042572,2]
[378811153,1755033033225,-154.52,0.00042728,2]
[378811154,1755033033234,-152.0,0.00042766,3]
[378811155,1755033033243,-151.0,0.000428,120]
[378811156,1755033033253,-429.76761058,0.00042841,120]
[378811157,1755033033262,-509.0,0.00042924,31]
[378811158,1755033033271,-1224.04944856,0.00042943,15]
[378811159,1755033033281,-1000.0,0.00043111,2]
[378811160,1755033033291,-429.76761058,0.00043216,120]
[378811161,1755033033303,-445.0,0.000433,2]
[378811162,1755033033313,-150.0,0.00043562,7]
[378811163,1755033033322,-150.0,0.00043562,7]
[378811164,1755033033332,-1310.0,0.00043563,30]
[378811165,1755033033341,-429.76761058,0.00043591,120]
[378811166,1755033033351,-509.0,0.00043636,32]
[378811167,1755033033360,-1224.04944856,0.00043796,15]
[378811168,1755033033371,-700.0,0.00043836,31]
[378811169,1755033033381,-150.0,0.00043836,7]
[378811170,1755033033391,-150.0,0.00043836,7]
[378811171,1755033033400,-151.0,0.000439,120]
[378811172,1755033033409,-429.76761058,0.00043966,120]
[378811173,1755033033420,-150.0,0.00043987,120]
[378811174,1755033033429,-150.0,0.00044,57]
[378811175,1755033033439,-624.0,0.00044,120]
[378811176,1755033033449,-607.0,0.00044,120]
[378811177,1755033033458,-608.0,0.00044,120]
[378811178,1755033033468,-1310.0,0.00044012,30]
[378811179,1755033033479,-150.0,0.0004411,7]
[378811180,1755033033488,-200.0,0.0004411,7]
[378811181,1755033033497,-500.0,0.00044193,120]
[378811182,1755033033507,-152.64,0.00044205,30]
[378811183,1755033033516,-429.76761058,0.00044341,120]
[378811184,1755033033525,-509.0,0.00044347,33]
[378811185,1755033033536,-150.0,0.00044384,7]
[378811186,1755033033545,-1310.0,0.00044461,30]
[378811187,1755033033554,-1224.04944856,0.00044648,15]
[378811188,1755033033565,-264.45489699,0.00044658,7]
[378811189,1755033033574,-154.52,0.0004467,2]
[378811190,1755033033584,-500.0,0.00044693,120]
[378811191,1755033033593,-2000.0,0.00044693,120]
[378811192,1755033033603,-227.08,0.00044697,14]
[378811193,1755033033612,-429.76761058,0.00044716,120]
[378811194,1755033033621,-1310.0,0.0004491,30]
[378811195,1755033033630,-400.32713633,0.0004491,30]
[378811196,1755033033640,-624.0,0.00045,120]
[378811197,1755033033649,-607.0,0.00045,120]
[378811198,1755033033658,-608.0,0.00045,120]
[378811199,1755033033669,-270.0,0.00045,120]
[378811200,1755033033679,-150.0,0.00045,120]
[378811201,1755033033689,-509.0,0.00045059,35]
[378811202,1755033033699,-538.17,0.00045086,30]
[378811203,1755033033708,-429.76761058,0.00045091,120]
[378811204,1755033033717,-3604.32748299,0.00045114,120]
[378811205,1755033033727,-200.0,0.00045132,2]
[378811206,1755033033737,-1310.0,0.00045359,30]
[378811207,1755033033746,-429.76761058,0.00045466,120]
[378811208,1755033033755,-1224.04944856,0.00045501,15]
[378811209,1755033033980,-500.0,0.00045706,60]
[378811210,1755033033990,-509.0,0.0004577,36]
[378811211,1755033034000,-1310.0,0.00045808,30]
[378811212,1755033034009,-429.76761058,0.0004584,120]
[378811213,1755033034019,-151.0,0.000459,120]
[378811214,1755033034029,-158.79181332,0.00045964,120]
[378811215,1755033034038,-400.0,0.0004597,3]
[378811216,1755033034047,-624.0,0.00046,120]
[378811217,1755033034057,-607.0,0.00046,120]
[378811218,1755033034066,-608.0,0.00046,120]
[378811219,1755033034075,-384.25135417,0.00046,120]
[378811220,1755033034085,-602.72,0.00046047,30]
[378811221,1755033034095,-429.76761058,0.00046215,120]
[378811222,1755033034104,-501.59503515,0.00046245,30]
[378811223,1755033034113,-1310.0,0.00046257,30]
[378811224,1755033034123,-500.0,0.00046293,120]
[378811225,1755033034132,-2000.0,0.00046293,120]
[378811226,1755033034141,-500.0,0.00046293,120]
[378811227,1755033034151,-500.0,0.00046293,120]
[378811228,1755033034160,-193.943703,0.00046293,120]
[378811229,1755033034170,-1224.04944856,0.00046353,15]
[378811230,1755033034179,-509.0,0.00046482,37]
[378811231,1755033034188,-429.76761058,0.0004659,120]
[378811232,1755033034198,-1079.9,0.000466,7]
[378811233,1755033034207,-210.0,0.0004661,30]
[378811234,1755033034217,-154.52,0.00046612,2]
[378811235,1755033034226,-717.06071291,0.00046771,120]
[378811236,1755033034236,-188.28284408,0.00046781,7]
[378811237,1755033034245,-500.0,0.00046802,60]
[378811238,1755033034255,-150.0,0.00046931,30]
[378811239,1755033034264,-466.13091524,0.00046931,30]
[378811240,1755033034273,-150.0,0.00046931,30]
[378811241,1755033034282,-195.84437832,0.00046931,30]
[378811242,1755033034294,-150.0,0.00046931,30]
[378811243,1755033034304,-767.05623019,0.00046931,30]
[378811244,1755033034314,-150.0,0.00046931,30]
[378811245,1755033034323,-3378.76309506,0.00046931,30]
[378811246,1755033034333,-429.76761058,0.00046965,120]
[378811247,1755033034342,-624.0,0.00047,120]
[378811248,1755033034351,-607.0,0.00047,120]
[378811249,1755033034364,-608.0,0.00047,120]
[378811250,1755033034374,-158.25922734,0.00047,120]
[378811251,1755033034383,-32454.00151422,0.00047027,2]
[378811252,1755033034392,-509.0,0.00047193,38]
[378811253,1755033034401,-188.0,0.000472,2]
[378811254,1755033034410,-1224.04944856,0.00047206,15]
[378811255,1755033034420,-210.0,0.0004766,30]
[378811256,1755033034429,-3014.24726215,0.0004772,60]
[378811257,1755033034439,-247.52,0.0004774,120]
[378811258,1755033034447,-151.0,0.000478,120]
[378811259,1755033034457,-500.0,0.00047898,60]
[378811260,1755033034466,-1000.0,0.00047901,2]
[378811261,1755033034476,-509.0,0.00047905,39]
[378811262,1755033034485,-624.0,0.00048,120]
[378811263,1755033034494,-607.0,0.00048,120]
[378811264,1755033034503,-608.0,0.00048,120]
[378811265,1755033034513,-1224.04944856,0.00048058,15]
[378811266,1755033034523,-185.0,0.0004828,2]
[378811267,1755033034533,-404.54973688,0.00048301,2]
[378811268,1755033034542,-528.775376,0.00048399,120]
[378811269,1755033034552,-2003.649568,0.00048399,120]
[378811270,1755033034561,-152.0,0.00048469,4]
[378811271,1755033034571,-151.27471094,0.00048544,7]
[378811272,1755033034580,-678.25059034,0.0004855,120]
[378811273,1755033034589,-600.0,0.000486,17]
[378811274,1755033034598,-172.27429439,0.000486,28]
[378811275,1755033034607,-150.0,0.0004861,7]
[378811276,1755033034616,-509.0,0.00048616,41]
[378811277,1755033034625,-400.90398047,0.0004867,3]
[378811278,1755033034635,-400.0,0.0004867,3]
[378811279,1755033034644,-1414.59631082,0.00048689,20]
[378811280,1755033034654,-6213.53736038,0.0004869,4]
[378811281,1755033034663,-5000.0,0.0004869,120]
[378811282,1755033034673,-226.86117273,0.00048695,27]
[378811283,1755033034683,-790.72,0.00048695,120]
[378811284,1755033034692,-158.13706302,0.000487,33]
[378811285,1755033034701,-69107.5725344,0.000487,120]
[378811286,1755033035195,-2072.44626956,0.000487,120]
[378811287,1755033035214,-17707.98119604,0.000487,120]
[378811288,1755033035223,-1200.0,0.000487,17]
[378811289,1755033035233,-213.0,0.0004872,2]
[378811290,1755033035242,-210.0,0.0004872,2]
[378811291,1755033035251,-215.0,0.0004872,2]
[378811292,1755033035260,-208.0,0.0004872,2]
[378811293,1755033035269,-203.0,0.0004872,2]
[378811294,1755033035278,-6213.53736038,0.0004877,4]
[378811295,1755033035287,-170.15466769,0.00048773,10]
[378811296,1755033035300,-12427.0747208,0.0004878,4]
[378811297,1755033035309,-24854.1494415,0.00048789,4]
[378811298,1755033035318,-400.0,0.00048789,120]
[378811299,1755033035327,-500.0,0.00048789,120]
[378811300,1755033035336,-500.0,0.00048789,120]
[378811301,1755033035346,-2441.82711986,0.0004879,4]
[378811305,1755033037618,-1888.0,0.0003893,3]
[378811306,1755033037628,-3776.0,0.0004117,3]
[378811307,1755033037638,-151.0,0.000444,120]
[378811308,1755033037647,-1888.0,0.00045158,3]
[378811309,1755033037657,-151.0,0.00046,120]
[378811310,1755033037667,-429.76761058,0.0004734,120]
[378811311,1755033037677,-3776.0,0.00047398,3]
[378811312,1755033037687,-151.0,0.000476,120]
[378811313,1755033037696,-165323.68161014,0.0004879,4]
[378811314,1755033037706,-76351.78807471,0.0004879,4]
[378811315,1755033037750,-173218.04234129,0.0004879,4]
[378811316,1755033037759,-190.19372738,0.0004879,7]
[378811317,1755033037768,-1063.8711364,0.00048795,120]
[378811318,1755033037778,-764.4860354,0.00048795,120]
[378811319,1755033037789,-500.0,0.00048798,120]
[378811320,1755033037800,-300.0,0.00048799,30]
[378811321,1755033037811,-150.0,0.00048799,120]
[378811322,1755033037822,-500.0,0.00048799,120]
[378811323,1755033037832,-500.0,0.00048799,120]
[378811324,1755033037841,-434.53,0.00048799,120]
[378811325,1755033037851,-151.0,0.00048799,120]
[378811326,1755033037860,-151.0,0.00048799,120]
[378811327,1755033037869,-150.0,0.00048799,120]
[378811328,1755033037879,-999.0,0.00048799,120]
[378811329,1755033037889,-600.0,0.00048799,120]
[378811330,1755033037898,-151.0,0.00048799,120]
[378811331,1755033037908,-600.0,0.00048799,120]
[378811332,1755033037917,-500.0,0.00048799,120]
[378811333,1755033037926,-600.0,0.00048799,120]
[378811334,1755033037935,-500.0,0.00048799,120]
[378811335,1755033037944,-600.0,0.00048799,120]
[378811336,1755033037953,-500.0,0.00048799,120]
[378811337,1755033037962,-600.0,0.00048799,120]
[378811338,1755033037971,-5000.0,0.00048799,120]
[378811339,1755033037980,-600.0,0.00048799,120]
[378811340,1755033037989,-160.0,0.00048799,120]
[378811341,1755033037998,-5000.0,0.00048799,120]
[378811342,1755033038007,-600.0,0.00048799,120]
[378811343,1755033038017,-5000.0,0.00048799,120]
[378811344,1755033038026,-1000.0,0.00048799,120]
[378811345,1755033038035,-600.0,0.00048799,120]
[378811346,1755033038044,-5000.0,0.00048799,120]
[378811347,1755033038054,-600.0,0.00048799,120]
[378811349,1755033038064,-1000.0,0.00048799,120]
[378811350,1755033038073,-5000.0,0.00048799,120]
[378811351,1755033038082,-600.0,0.00048799,120]
[378811353,1755033038091,-250.0,0.00048799,120]
[378811355,1755033038100,-5125.08371312,0.00048799,120]
[378811357,1755033038108,-600.0,0.00048799,120]
[378811358,1755033038118,-250.0,0.00048799,120]
[378811359,1755033038127,-250.0,0.00048799,120]
[378811360,1755033038136,-250.0,0.00048799,120]
[378811361,1755033038145,-600.0,0.00048799,120]
[378811362,1755033038155,-231.28369723,0.00048799,120]
[378811363,1755033038164,-600.0,0.00048799,120]
[378811364,1755033038173,-156.30143435,0.00048799,120]
[378811365,1755033038182,-461305.05504192,0.000488,120]
[378811366,1755033038191,-499999.0,0.000488,120]
[378811367,1755033038200,-22777.52036941,0.000488,120]
[378811368,1755033038209,-463.03396,0.000488,120]
[378811369,1755033038218,-167.34,0.000488,30]
[378811370,1755033038227,-656.95,0.000488,2]
[378811371,1755033038236,-609.81,0.000488,30]
[378811372,1755033038245,-150.0,0.000488,120]
[378811373,1755033038254,-362158.06651342,0.000488,120]
[378811374,1755033038266,-66341.28607711,0.000488,120]
[378811375,1755033038277,-1825.88052843,0.000488,120]
[378811376,1755033038288,-1905.39435875,0.000488,120]
[378811377,1755033038311,-1888.0,0.000488,120]
[378811378,1755033038367,-1888.0,0.0003943,3]
[378811379,1755033038378,-20413.80643636,0.000488,120]
[378811380,1755033038388,-3255.59870817,0.000488,120]
[378811381,1755033038403,-368.512,0.0004167,3]
[378811382,1755033038414,-443.13092382,0.0004167,3]
[378811384,1755033039843,-2249.22447402,0.0004167,3]
[378811385,1755033039862,-715.13260216,0.0004167,3]
[378811386,1755033039871,-429.76761058,0.00047715,120]
[378811387,1755033039880,-4462.04402405,0.000488,120]
[378811388,1755033039891,-4784.56333042,0.000488,120]
[378811389,1755033040275,-1888.0,0.0004217,3]
[378811390,1755033040288,-2732.5,0.0004441,3]
[378811391,1755033040334,-1043.5,0.0004441,3]
[378811392,1755033040344,-5883.72639086,0.000488,120]
[378811393,1755033040355,-888.0,0.000488,120]
[378811507,1755033042729,-150.0,0.00048602,7]
[378811508,1755033042740,-150.0,0.00048711,7]
[378811509,1755033042750,-3700.0,0.000488,120]
[378811510,1755033042763,-22492.63363243,0.000488,120]
[378811511,1755033042773,-1800.0,0.000488,17]
[378811512,1755033042782,-337.32602154,0.000488,30]
[378811513,1755033042791,-255.83,0.000488,14]
[378811514,1755033042801,-150.0,0.00048808,120]
[378811515,1755033042811,-2134.18421855,0.00048822,8]
[378811516,1755033042831,-1865.81578145,0.00048822,8]
[378811517,1755033042842,-1888.0,0.00048899,120]
[378811518,1755033042852,-2400.0,0.000489,17]
[378811519,1755033042861,-1224.04944856,0.00048911,15]
[378811520,1755033042871,-166.3,0.00048924,2]
[378811521,1755033042880,-1873.10771339,0.00048951,120]
[378811522,1755033042889,-1873.10771339,0.00048951,120]
[378811523,1755033042898,-559.70973262,0.00048951,120]
[378811525,1755033042933,-1313.39798077,0.00048951,120]
[378811526,1755033042942,-1873.10771339,0.00048951,120]
[378811527,1755033042951,-419.79430584,0.00048951,120]
[378811528,1755033042962,-1453.31340755,0.00048951,120]
[378811529,1755033042971,-1873.10771339,0.00048951,120]
[378811530,1755033042981,-1873.10771339,0.00048951,120]
[378811531,1755033042990,-1873.10771339,0.00048951,120]
[378811532,1755033042999,-1873.10771339,0.00048951,120]
[378811533,1755033043008,-1873.10771339,0.00048951,120]
[378811534,1755033043017,-1873.10771339,0.00048951,120]
[378811535,1755033043027,-1873.10771339,0.00048951,120]
[378811536,1755033043036,-1873.10771339,0.00048951,120]
[378811537,1755033043045,-1873.10771339,0.00048951,120]
[378811538,1755033043055,-1873.10771339,0.00048951,120]
[378811539,1755033043064,-1273.40876395,0.00048951,120]
[378811540,1755033043073,-1273.40876395,0.00048951,120]
[378811541,1755033043082,-1273.40876395,0.00048951,120]
[378811542,1755033043092,-1273.40876395,0.00048951,120]
[378811543,1755033043102,-1273.40876395,0.00048951,120]
[378811544,1755033043111,-1273.40876395,0.00048951,120]
[378811545,1755033043121,-1273.40876395,0.00048951,120]
[378811546,1755033043132,-1273.40876395,0.00048951,120]
[378811547,1755033043141,-1273.40876395,0.00048951,120]
[378811548,1755033043150,-1273.40876395,0.00048951,120]
[378811549,1755033043160,-1273.40876395,0.00048951,120]
[378811550,1755033043171,-1273.40876395,0.00048951,120]
[378811551,1755033043180,-1273.40876395,0.00048951,120]
[378811552,1755033043190,-1273.40876395,0.00048951,120]
[378811553,1755033043199,-1273.40876395,0.00048951,120]
[378811554,1755033043209,-1566.69527418,0.00048951,120]
[378811555,1755033043218,-1566.69527418,0.00048951,120]
[378811556,1755033043228,-1566.69527418,0.00048951,120]
[378811557,1755033043237,-1566.69527418,0.00048951,120]
[378811558,1755033043247,-1566.69527418,0.00048951,120]
[378811559,1755033043257,-1566.69527418,0.00048951,120]
[378811560,1755033043267,-1566.69527418,0.00048951,120]
[378811561,1755033043276,-1566.69527418,0.00048951,120]
[378811563,1755033043285,-1566.69527418,0.00048951,120]
[378811565,1755033043294,-1566.69527418,0.00048951,120]
[378811566,1755033043308,-1566.69527418,0.00048951,120]
[378811567,1755033043317,-1566.69527418,0.00048951,120]
[378811568,1755033043326,-1566.69527418,0.00048951,120]
[378811569,1755033043335,-1566.69527418,0.00048951,120]
[378811570,1755033043345,-1566.69527418,0.00048951,120]
[378811571,1755033043354,-500.0,0.00048994,60]
[378811572,1755033043363,-6076.0,0.00049,120]
[378811573,1755033043373,-300.0,0.00049,120]
[378811574,1755033043383,-5000.0,0.00049,120]
[378811575,1755033043393,-2039.81,0.00049,14]
[378811576,1755033043402,-624.0,0.00049,120]
[378811577,1755033043412,-607.0,0.00049,120]
[378811578,1755033043421,-608.0,0.00049,120]
[378811579,1755033043431,-500.0,0.00049051,120]
[378811580,1755033043440,-513.659789,0.00049058,120]
[378811582,1755033043449,-1873.10771339,0.00049087,120]
[378811584,1755033043458,-1273.40876395,0.00049087,120]
[378811586,1755033043468,-1566.69527418,0.00049087,120]
[378811588,1755033043477,-172.27429436,0.00049112,28]
[378811590,1755033043487,-151.0,0.000492,120]
[378811592,1755033043496,-950.50779275,0.00049215,2]
[378811594,1755033043506,-862.90641589,0.000493,120]
[378811609,1755033046032,-429.76761058,0.0004809,120]
[378811610,1755033046042,-218.55170279,0.00048727,120]
[378811611,1755033046051,-1888.0,0.00049102,3]
[378811612,1755033046060,-1025.09358411,0.000493,120]
[378811613,1755033046069,-300.0,0.00049314,30]
[378811614,1755033046079,-310.0,0.00049315,30]
[378811615,1755033046088,-338.744835,0.00049315,120]
[378811616,1755033046097,-235.824776,0.00049315,120]
[378811617,1755033046106,-171.399141,0.00049315,120]
[378811618,1755033046115,-158.062087,0.00049315,120]
[378811619,1755033046125,-161.61867,0.00049315,120]
[378811620,1755033046134,-164.154732,0.00049315,120]
[378811621,1755033046143,-400.0,0.00049315,120]
[378811622,1755033046153,-400.0,0.00049315,120]
[378811623,1755033046162,-400.0,0.00049315,120]
[378811624,1755033046172,-407.02407518,0.00049315,120]
[378811626,1755033046181,-400.0,0.00049315,120]
[378811628,1755033046190,-400.0,0.00049315,120]
[378811630,1755033046199,-532.01863281,0.00049315,120]
[378811632,1755033046208,-400.0,0.00049315,120]
[378811634,1755033046217,-400.0,0.00049315,120]
[378811635,1755033046226,-400.0,0.00049315,120]
[378811636,1755033046235,-401.52030398,0.00049315,120]
[378811637,1755033046245,-400.0,0.00049315,120]
[378811638,1755033046255,-400.0,0.00049315,120]
[378811639,1755033046264,-460.0,0.00049315,120]
[378811640,1755033046273,-400.0,0.00049315,120]
[378811641,1755033046282,-453.83198919,0.00049315,120]
[378811642,1755033046292,-405.53153859,0.00049315,120]
[378811643,1755033046303,-400.0,0.00049315,120]
[378811644,1755033046312,-400.0,0.00049315,120]
[378811645,1755033046321,-225.82436648,0.00049315,120]
[378811646,1755033046330,-400.0,0.00049315,120]
[378811647,1755033046339,-400.0,0.00049315,120]
[378811649,1755033046350,-400.80368483,0.00049315,120]
[378811650,1755033046359,-400.0,0.00049315,120]
[378811651,1755033046368,-400.0,0.00049315,120]
[378811652,1755033046378,-401.10066057,0.00049315,120]
[378811653,1755033046387,-401.65858344,0.00049315,120]
[378811654,1755033046396,-400.0,0.00049315,30]
[378811655,1755033046405,-400.0,0.00049315,120]
[378811656,1755033046414,-400.0,0.00049315,120]
[378811657,1755033046424,-403.54989746,0.00049315,120]
[378811658,1755033046433,-403.46118092,0.00049315,120]
[378811659,1755033046443,-400.98461319,0.00049315,120]
[378811660,1755033046452,-400.0,0.00049315,120]
[378811661,1755033046461,-400.0,0.00049315,120]
[378811662,1755033046470,-400.0,0.00049315,120]
[378811663,1755033046480,-400.79923722,0.00049315,120]
[378811664,1755033046489,-400.0,0.00049315,120]
[378811665,1755033046498,-400.0,0.00049315,120]
[378811666,1755033046507,-400.0,0.00049315,120]
[378811667,1755033046516,-400.0,0.00049315,120]
[378811668,1755033046526,-400.0,0.00049315,120]
[378811669,1755033046535,-400.0,0.00049315,120]
[378811670,1755033046544,-400.0,0.00049315,120]
[378811671,1755033046553,-400.0,0.00049315,120]
[378811672,1755033046563,-400.0,0.00049315,120]
[378811673,1755033046572,-128.67409767,0.00049315,120]
[378811674,1755033046594,-271.32590233,0.00049315,120]
[378811675,1755033046604,-400.0,0.00049315,120]
[378811676,1755033046613,-400.0,0.00049315,120]
[378811677,1755033046622,-224.10613182,0.00049315,120]
[378811678,1755033046634,-175.89386818,0.00049315,120]
[378811679,1755033046643,-400.0,0.00049315,120]
[378811680,1755033046653,-400.0,0.00049315,120]
[378811681,1755033046662,-400.0,0.00049315,60]
[378811682,1755033046673,-400.0,0.00049315,2]
[378811683,1755033046682,-400.0,0.00049315,120]
[378811684,1755033046691,-400.0,0.00049315,120]
[378811685,1755033046700,-400.0,0.00049315,120]
[378811686,1755033046710,-401.51513803,0.00049315,120]
[378811687,1755033046720,-500.0,0.00049315,120]
[378811688,1755033046729,-500.0,0.00049315,120]
[378811689,1755033046738,-500.0,0.00049315,120]
[378811690,1755033046748,-500.0,0.00049315,120]